fUSD/lending_fUSD_20240404
["ID","MTS","AMOUNT","RATE_DAILY","PERIOD"]
[321444745,1712193058951,-322.885202,0.0005467,120]
[321444746,1712193058961,-322.885202,0.0005467,120]
[321444747,1712193058970,-151.0,0.0005467,120]
[321444748,1712193058979,-279.529622,0.0005467,14]
[321444749,1712193058988,-152.975986,0.0005467,120]
[321444750,1712193058997,-151.0,0.0005467,120]
[321444751,1712193059006,-279.529622,0.0005467,14]
[321444752,1712193059016,-151.0,0.0005467,120]
[321444753,1712193059026,-340.368361,0.0005467,120]
[321444754,1712193059035,-340.368361,0.0005467,120]
[321444755,1712193059045,-353.623815,0.0005467,120]
[321444756,1712193059054,-353.623815,0.0005467,120]
[321444757,1712193059063,-151.0,0.0005467,120]
[321444758,1712193059073,-151.0,0.0005467,120]
[321444759,1712193059082,-151.0,0.0005467,120]
[321444760,1712193059093,-151.0,0.0005467,120]
[321444761,1712193059102,-151.0,0.0005467,120]
[321444762,1712193059110,-151.0,0.0005467,120]
[321444763,1712193059120,-151.0,0.0005467,120]
[321444764,1712193059129,-151.0,0.0005467,120]
[321444765,1712193059139,-185.086166,0.0005467,120]
[321444766,1712193059148,-185.086166,0.0005467,120]
[321444767,1712193059158,-151.0,0.0005467,60]
[321444768,1712193059168,-1065.26280731,0.00054685,120]
[321444769,1712193059177,-509.54232732,0.00054687,60]
[321444770,1712193059188,-149776.28608833,0.00054688,120]
[321444771,1712193059197,-1249.96692148,0.0005469,7]
[321444772,1712193059207,-1005.96,0.000547,2]
[321444773,1712193059217,-157.040409,0.00054704,116]
[321444774,1712193059226,-150.0,0.00054715,7]
[321444775,1712193059236,-150.0,0.00054734,7]
[321444776,1712193059245,-8200.29097549,0.00054735,120]
[321444777,1712193059255,-150.0,0.0005474,7]
[321444778,1712193059265,-150.0,0.00054741,7]
[321444779,1712193059274,-1500.0,0.00054745,7]
[321444780,1712193059283,-150.0,0.0005475,7]
[321444781,1712193059292,-3170.77637,0.00054752,30]
[321444782,1712193059302,-602.12417404,0.00054752,60]
[321444783,1712193059311,-154.04196447,0.00054755,60]
[321444784,1712193059319,-211.70038815,0.00054762,60]
[321444785,1712193059329,-25000.0,0.00054762,35]
[321444786,1712193059338,-25000.0,0.00054762,35]
[321444787,1712193059347,-2197.15897014,0.00054762,35]
[321444788,1712193059356,-489.65035407,0.00054762,35]
[321444789,1712193059365,-1131.11,0.00054767,120]
[321444790,1712193059374,-150.0,0.00054774,7]
[321444791,1712193059384,-509.54232732,0.00054777,60]
[321444792,1712193059392,-150.0,0.0005478,7]
[321444793,1712193059401,-211.70038815,0.00054782,60]
[321444794,1712193059410,-150.0,0.00054783,7]
[321444795,1712193059419,-509.54232732,0.00054785,60]
[321444796,1712193059428,-485.96508342,0.00054789,120]
[321444797,1712193059438,-22028.62011075,0.00054794,120]
[321444798,1712193059446,-503.5870309,0.00054794,120]
[321444799,1712193059456,-500.0,0.00054794,120]
[321444800,1712193059465,-500.0,0.00054794,120]
[321444801,1712193059474,-500.12705017,0.00054794,120]
[321444802,1712193059483,-500.0,0.00054794,120]
[321444803,1712193059492,-513.61372717,0.00054794,120]
[321444804,1712193059502,-511.52850941,0.00054794,120]
[321444805,1712193059511,-500.0,0.00054794,120]
[321444806,1712193059520,-500.0,0.00054794,120]
[321444807,1712193059529,-743.5,0.00054794,120]
[321444808,1712193059538,-513.80884796,0.00054794,120]
[321444809,1712193059547,-616.76,0.00054794,120]
[321444810,1712193059557,-500.0,0.00054794,120]
[321444811,1712193059566,-500.0,0.00054794,120]
[321444812,1712193059575,-500.0,0.00054794,120]
[321444813,1712193059584,-500.0,0.00054794,120]
[321444814,1712193059593,-500.0,0.00054794,120]
[321444815,1712193059602,-508.3253165,0.00054794,120]
[321444816,1712193059612,-500.0,0.00054794,120]
[321444817,1712193059621,-500.0,0.00054794,120]
[321444818,1712193059631,-500.0,0.00054794,120]
[321444819,1712193059642,-500.0,0.00054794,120]
[321444820,1712193059651,-500.0,0.00054794,120]
[321444821,1712193059661,-500.0,0.00054794,120]
[321444822,1712193059671,-500.0,0.00054794,120]
[321444823,1712193059680,-500.0,0.00054794,120]
[321444824,1712193059690,-500.0,0.00054794,120]
[321444825,1712193059700,-500.0,0.00054794,120]
[321444826,1712193059713,-777.46,0.00054794,120]
[321444827,1712193059722,-506.2314857,0.00054794,120]
[321444828,1712193059731,-500.0,0.00054794,120]
[321444829,1712193059740,-505.2088939,0.00054794,120]
[321444830,1712193059751,-500.0,0.00054794,120]
[321444831,1712193059760,-607.7,0.00054794,120]
[321444832,1712193059769,-500.0,0.00054794,120]
[321444833,1712193059778,-500.0,0.00054794,120]
[321444834,1712193059789,-612.47402146,0.00054794,120]
[321444835,1712193059799,-500.0,0.00054794,120]
[321444836,1712193059808,-1000.0,0.00054794,120]
[321444837,1712193059818,-500.0,0.00054794,120]
[321444838,1712193059827,-500.0,0.00054794,120]
[321444839,1712193059839,-627.53,0.00054794,120]
[321444840,1712193059849,-508.93321283,0.00054794,120]
[321444841,1712193059860,-605.29128315,0.00054794,120]
[321444842,1712193059870,-500.0,0.00054794,120]
[321444843,1712193059879,-500.0,0.00054794,120]
[321444844,1712193059889,-500.0,0.00054794,120]
[321444845,1712193059899,-500.0,0.00054794,120]
[321444846,1712193059908,-500.0,0.00054794,120]
[321444847,1712193059917,-509.04517111,0.00054794,120]
[321444848,1712193059926,-506.37662323,0.00054794,120]
[321444849,1712193059937,-500.0,0.00054794,120]
[321444850,1712193059946,-500.0,0.00054794,120]
[321444851,1712193059955,-595.85,0.00054794,120]
[321444852,1712193059964,-835.6,0.00054794,120]
[321444853,1712193059974,-527.65183041,0.00054794,120]
[321444854,1712193059983,-500.0,0.00054794,120]
[321444855,1712193059992,-500.0,0.00054794,120]
[321444856,1712193060002,-500.0,0.00054794,120]
[321444857,1712193060012,-500.0,0.00054794,120]
[321444858,1712193060021,-500.0,0.00054794,120]
[321444859,1712193060031,-500.0,0.00054794,120]
[321444860,1712193060040,-503.43285261,0.00054794,120]
[321444861,1712193060051,-508.32905957,0.00054794,120]
[321444862,1712193060062,-500.0,0.00054794,120]
[321444863,1712193060073,-500.0,0.00054794,120]
[321444864,1712193060084,-500.0,0.00054794,120]
[321444865,1712193060094,-636.55,0.00054794,120]
[321444866,1712193060104,-639.28,0.00054794,120]
[321444867,1712193060114,-500.0,0.00054794,120]
[321444868,1712193060124,-500.0,0.00054794,120]
[321444869,1712193060133,-500.0,0.00054794,120]
[321444870,1712193060143,-500.0,0.00054794,120]
[321444871,1712193060152,-500.0,0.00054794,120]
[321444872,1712193060161,-727.44,0.00054794,120]
[321444873,1712193060171,-516.03,0.00054794,120]
[321444874,1712193060181,-500.0,0.00054794,120]
[321444875,1712193060190,-500.0,0.00054794,120]
[321444876,1712193060199,-500.0,0.00054794,120]
[321444877,1712193060209,-500.0,0.00054794,120]
[321444878,1712193060219,-500.0,0.00054794,120]
[321444879,1712193060229,-500.0,0.00054794,120]
[321444880,1712193060238,-500.0,0.00054794,120]
[321444881,1712193060248,-500.0,0.00054794,120]
[321444882,1712193060257,-694.85,0.00054794,120]
[321444883,1712193060267,-508.41464968,0.00054794,120]
[321444884,1712193060277,-500.0,0.00054794,120]
[321444885,1712193060286,-514.24865538,0.00054794,120]
[321444886,1712193060296,-582.69,0.00054794,120]
[321444887,1712193060305,-505.99150663,0.00054794,120]
[321444888,1712193060315,-500.0,0.00054794,120]
[321444889,1712193060324,-500.0,0.00054794,120]
[321444890,1712193060334,-1652.9,0.00054794,2]
[321444891,1712193060343,-576.96,0.00054794,120]
[321444892,1712193060352,-500.0,0.00054794,120]
[321444893,1712193060361,-500.0,0.00054794,120]
[321444894,1712193060371,-508.18607914,0.00054794,120]
[321444895,1712193060380,-500.0,0.00054794,120]
[321444896,1712193060389,-514.19292966,0.00054794,120]
[321444897,1712193060399,-787.49,0.00054794,120]
[321444898,1712193060409,-500.0,0.00054794,120]
[321444899,1712193060418,-511.3265256,0.00054794,120]
[321444900,1712193060427,-500.0,0.00054794,120]
[321444901,1712193060436,-506.5027619,0.00054794,120]
[321444902,1712193060445,-500.0,0.00054794,120]
[321444903,1712193060454,-500.0,0.00054794,120]
[321444904,1712193060462,-200.0,0.00054794,10]
[321444905,1712193060471,-543.17640315,0.00054794,120]
[321444906,1712193060480,-500.0,0.00054794,120]
[321444907,1712193060489,-973.42,0.00054794,120]
[321444908,1712193060498,-531.21068387,0.00054794,120]
[321444909,1712193060507,-500.0,0.00054794,120]
[321444910,1712193060516,-500.0,0.00054794,120]
[321444911,1712193060525,-500.0,0.00054794,120]
[321444912,1712193060534,-506.62152908,0.00054794,120]
[321444913,1712193060543,-500.0,0.00054794,120]
[321444914,1712193060553,-536.04926296,0.00054794,120]
[321444915,1712193060562,-577.38987168,0.00054794,120]
[321444916,1712193060571,-500.0,0.00054794,120]
[321444917,1712193060580,-504.08964628,0.00054794,120]
[321444918,1712193060589,-500.0,0.00054794,120]
[321444919,1712193060598,-746.05,0.00054794,120]
[321444920,1712193060607,-500.0,0.00054794,2]
[321444921,1712193060616,-500.0,0.00054794,120]
[321444922,1712193060625,-506.20642681,0.00054794,120]
[321444923,1712193060634,-500.0,0.00054794,120]
[321444924,1712193060644,-503.50830343,0.00054794,120]
[321444925,1712193060653,-500.0,0.00054794,120]
[321444926,1712193060663,-703.82,0.00054794,120]
[321444927,1712193060672,-500.0,0.00054794,120]
[321444928,1712193060681,-500.0,0.00054794,120]
[321444929,1712193060691,-500.0,0.00054794,120]
[321444930,1712193060702,-500.0,0.00054794,120]
[321444931,1712193060717,-500.0,0.00054794,120]
[321444932,1712193060726,-500.0,0.00054794,120]
[321444933,1712193060737,-500.0,0.00054794,120]
[321444934,1712193060747,-500.0,0.00054794,120]
[321444935,1712193060756,-674.38,0.00054794,120]
[321444936,1712193060766,-506.32092313,0.00054794,120]
[321444937,1712193060776,-500.0,0.00054794,120]
[321444938,1712193060787,-500.0,0.00054794,120]
[321444939,1712193060796,-500.0,0.00054794,120]
[321444940,1712193060806,-500.0,0.00054794,120]
[321444941,1712193060816,-538.76,0.00054794,120]
[321444942,1712193060825,-500.0,0.00054794,120]
[321444943,1712193060834,-673.34,0.00054794,120]
[321444944,1712193060857,-500.0,0.00054794,2]
[321444945,1712193060867,-508.60080957,0.00054794,120]
[321444946,1712193060877,-855.27,0.00054794,120]
[321444947,1712193060886,-507.94580546,0.00054794,120]
[321444948,1712193060895,-520.63918074,0.00054794,120]
[321444949,1712193060905,-500.0,0.00054794,120]
[321444950,1712193060913,-500.0,0.00054794,120]
[321444951,1712193060922,-500.0,0.00054794,120]
[321444952,1712193060931,-500.0,0.00054794,120]
[321444953,1712193060940,-500.0,0.00054794,120]
[321444954,1712193060949,-500.0,0.00054794,120]
[321444955,1712193060959,-559.35,0.00054794,120]
[321444956,1712193060968,-506.96074598,0.00054794,120]
[321444957,1712193060977,-515.47059355,0.00054794,120]
[321444958,1712193060986,-515.96764061,0.00054794,120]
[321444959,1712193060995,-508.23031721,0.00054794,120]
[321444960,1712193061005,-506.57556221,0.00054794,120]
[321444961,1712193061014,-506.45615461,0.00054794,120]
[321444962,1712193061024,-505.48463941,0.00054794,120]
[321444963,1712193061034,-500.0,0.00054794,120]
[321444964,1712193061043,-636.7152615,0.00054794,120]
[321444965,1712193061053,-154.035489,0.00054794,120]
[321444966,1712193061062,-500.0,0.00054794,120]
[321444967,1712193061071,-1037.75,0.00054794,120]
[321444968,1712193061081,-500.0,0.00054794,120]
[321444969,1712193061090,-500.0,0.00054794,120]
[321444970,1712193061099,-500.0,0.00054794,120]
[321444971,1712193061108,-500.0,0.00054794,120]
[321444972,1712193061118,-500.0,0.00054794,120]
[321444973,1712193061128,-500.0,0.00054794,120]
[321444974,1712193061137,-504.33119942,0.00054794,120]
[321444975,1712193061147,-500.0,0.00054794,120]
[321444976,1712193061156,-500.0,0.00054794,120]
[321444977,1712193061165,-500.0,0.00054794,120]
[321444978,1712193061174,-500.0,0.00054794,120]
[321444979,1712193061183,-500.0,0.00054794,120]
[321444980,1712193061192,-151.0,0.00054794,120]
[321444981,1712193061201,-500.0,0.00054794,120]
[321444982,1712193061210,-531.76,0.00054794,120]
[321444983,1712193061219,-502.26488189,0.00054794,120]
[321444984,1712193061228,-514.20142991,0.00054794,120]
[321444985,1712193061238,-500.0,0.00054794,120]
[321444986,1712193061247,-505.43292976,0.00054794,120]
[321444987,1712193061257,-513.90803009,0.00054794,120]
[321444988,1712193061267,-938.84,0.00054794,120]
[321444989,1712193061277,-508.08381425,0.00054794,120]
[321444990,1712193061286,-500.0,0.00054794,120]
[321444991,1712193061296,-500.00000055,0.00054794,120]
[321444992,1712193061305,-657.28,0.00054794,120]
[321444993,1712193061314,-500.0,0.00054794,120]
[321444994,1712193061323,-508.49403472,0.00054794,120]
[321444995,1712193061332,-679.51,0.00054794,120]
[321444996,1712193061350,-500.0,0.00054794,120]
[321444997,1712193061360,-151.0,0.00054794,120]
[321444998,1712193061369,-503.42569708,0.00054794,120]
[321444999,1712193061379,-1384.73,0.00054794,120]
[321445000,1712193061388,-500.0,0.00054794,120]
[321445001,1712193061398,-500.0,0.00054794,120]
[321445002,1712193061407,-500.0,0.00054794,120]
[321445003,1712193061417,-500.0,0.00054794,120]
[321445004,1712193061426,-500.0,0.00054794,120]
[321445005,1712193061435,-1000.0,0.00054794,120]
[321445006,1712193061445,-500.0,0.00054794,120]
[321445007,1712193061455,-253.43095902,0.00054794,2]
[321445008,1712193061464,-500.0,0.00054794,120]
[321445009,1712193061473,-1055.26,0.00054794,120]
[321445010,1712193061483,-500.0,0.00054794,120]
[321445011,1712193061492,-500.0,0.00054794,120]
[321445012,1712193061502,-500.0,0.00054794,120]
[321445013,1712193061511,-514.77209195,0.00054794,120]
[321445014,1712193061522,-500.0,0.00054794,120]
[321445015,1712193061532,-151.0,0.00054794,120]
[321445016,1712193061542,-500.0,0.00054794,120]
[321445017,1712193061552,-481.9493303,0.00054794,120]
[321445018,1712193061561,-500.0,0.00054794,120]
[321445019,1712193061571,-500.0,0.00054794,120]
[321445020,1712193061581,-762.57,0.00054794,120]
[321445021,1712193061593,-500.0,0.00054794,120]
[321445022,1712193061602,-751.45,0.00054794,120]
[321445023,1712193061612,-500.0,0.00054794,120]
[321445024,1712193061621,-500.0,0.00054794,120]
[321445025,1712193061630,-500.0,0.00054794,120]
[321445026,1712193061640,-500.0,0.00054794,120]
[321445027,1712193061651,-500.0,0.00054794,120]
[321445028,1712193061663,-500.0,0.00054794,120]
[321445029,1712193061673,-775.35,0.00054794,120]
[321445030,1712193061684,-500.0,0.00054794,120]
[321445031,1712193061695,-500.0,0.00054794,120]
[321445032,1712193061706,-500.0,0.00054794,120]
[321445033,1712193061718,-500.0,0.00054794,120]
[321445034,1712193061728,-444.36658697,0.00054794,120]
[321445035,1712193061738,-734.72,0.00054794,120]
[321445036,1712193061749,-817.0,0.00054794,120]
[321445037,1712193061758,-500.0,0.00054794,120]
[321445038,1712193061768,-1067.21,0.00054794,120]
[321445039,1712193061777,-500.0,0.00054794,120]
[321445040,1712193061788,-514.34774889,0.00054794,15]
[321445041,1712193061797,-500.0,0.00054794,120]
[321445042,1712193061807,-500.0,0.00054794,120]
[321445043,1712193061817,-918.29,0.00054794,120]
[321445044,1712193061826,-500.0,0.00054794,120]
[321445045,1712193061837,-500.0,0.00054794,120]
[321445046,1712193061847,-501.84222635,0.00054794,120]
[321445047,1712193061858,-542.56215447,0.00054794,120]
[321445048,1712193061869,-351.16695928,0.00054794,120]
[321445049,1712193061878,-507.78656315,0.00054794,120]
[321445050,1712193061887,-1803.32,0.00054794,120]
[321445051,1712193061897,-500.0,0.00054794,120]
[321445052,1712193061907,-530.57,0.00054794,120]
[321445053,1712193061916,-500.0,0.00054794,120]
[321445054,1712193061927,-560.34740674,0.00054794,120]
[321445055,1712193061937,-500.0,0.00054794,120]
[321445056,1712193061949,-500.0,0.00054794,120]
[321445057,1712193061959,-529.02666222,0.00054794,120]
[321445058,1712193061969,-500.0,0.00054794,120]
[321445059,1712193061978,-507.91153287,0.00054794,120]
[321445060,1712193061987,-515.62287532,0.00054794,120]
[321445061,1712193061996,-500.0,0.00054794,120]
[321445062,1712193062006,-573.84,0.00054794,120]
[321445063,1712193062015,-647.86,0.00054794,120]
[321445064,1712193062026,-500.0,0.00054794,120]
[321445065,1712193062037,-600.0,0.00054794,2]
[321445066,1712193062047,-791.83,0.00054794,120]
[321445067,1712193062059,-500.0,0.00054794,120]
[321445068,1712193062068,-513.93561521,0.00054794,120]
[321445069,1712193062078,-504.12993072,0.00054794,120]
[321445070,1712193062087,-500.0,0.00054794,120]
[321445071,1712193062096,-518.35280255,0.00054794,120]
[321445072,1712193062105,-500.0,0.00054794,120]
[321445073,1712193062115,-500.0,0.00054794,120]
[321445074,1712193062124,-439.85070222,0.00054794,120]
[321445075,1712193062134,-1099.54,0.00054794,120]
[321445076,1712193062144,-500.0,0.00054794,120]
[321445077,1712193062154,-500.0,0.00054794,120]
[321445078,1712193062163,-515.21200817,0.00054794,120]
[321445079,1712193062174,-500.0,0.00054794,120]
[321445080,1712193062184,-3000.0,0.00054794,120]
[321445081,1712193062194,-500.0,0.00054794,120]
[321445082,1712193062204,-163.39261149,0.00054794,120]
[321445083,1712193062215,-546.4803337,0.00054794,120]
[321445084,1712193062225,-500.0,0.00054794,120]
[321445085,1712193062235,-507.86137446,0.00054794,120]
[321445086,1712193062245,-500.0,0.00054794,120]
[321445087,1712193062255,-500.0,0.00054794,120]
[321445088,1712193062264,-500.0,0.00054794,120]
[321445089,1712193062274,-1002.06424694,0.00054794,2]
[321445090,1712193062284,-508.43084077,0.00054794,120]
[321445091,1712193062295,-500.0,0.00054794,120]
[321445092,1712193062305,-510.40366289,0.00054794,120]
[321445093,1712193062316,-551.7481468,0.00054794,120]
[321445094,1712193062326,-500.0,0.00054794,120]
[321445095,1712193062337,-521.9581491,0.00054794,120]
[321445096,1712193062348,-500.0,0.00054794,120]
[321445097,1712193062360,-500.0,0.00054794,120]
[321445098,1712193062371,-500.0,0.00054794,120]
[321445099,1712193062381,-500.0,0.00054794,120]
[321445100,1712193062392,-500.0,0.00054794,120]
[321445101,1712193062403,-500.0,0.00054794,120]
[321445102,1712193062413,-1657.99,0.00054794,30]
[321445103,1712193062424,-500.0,0.00054794,120]
[321445104,1712193062435,-508.64,0.00054794,120]
[321445105,1712193062446,-512.93732202,0.00054794,120]
[321445106,1712193062456,-506.604401,0.00054794,120]
[321445107,1712193062467,-873.47,0.00054794,120]
[321445108,1712193062477,-500.0,0.00054794,120]
[321445109,1712193062487,-507.38377001,0.00054794,120]
[321445110,1712193062497,-511.24,0.00054794,120]
[321445111,1712193062507,-506.72465766,0.00054794,120]
[321445112,1712193062516,-516.18097757,0.00054794,120]
[321445113,1712193062526,-500.0,0.00054794,120]
[321445114,1712193062537,-990.77,0.00054794,120]
[321445115,1712193062548,-500.0,0.00054794,120]
[321445116,1712193062558,-500.0,0.00054794,120]
[321445117,1712193062569,-153.30865476,0.00054794,120]
[321445118,1712193062580,-704.66,0.00054794,120]
[321445119,1712193062591,-749.89,0.00054794,120]
[321445120,1712193062600,-503.01568906,0.00054794,120]
[321445121,1712193062611,-1027.84,0.00054794,120]
[321445122,1712193062621,-500.0,0.00054794,120]
[321445123,1712193062632,-510.12050361,0.00054794,120]
[321445124,1712193062643,-868.5,0.00054794,120]
[321445125,1712193062653,-500.0,0.00054794,120]
[321445126,1712193062663,-2020.42,0.00054794,120]
[321445127,1712193062674,-500.0,0.00054794,120]
[321445128,1712193062684,-517.56558449,0.00054794,120]
[321445129,1712193062694,-1632.35,0.00054794,120]
[321445130,1712193062705,-500.0,0.00054794,120]
[321445131,1712193062719,-509.67767544,0.00054794,120]
[321445132,1712193062729,-508.30182175,0.00054794,120]
[321445133,1712193062739,-705.27,0.00054794,120]
[321445134,1712193062750,-500.0,0.00054794,120]
[321445135,1712193062761,-500.0,0.00054794,120]
[321445136,1712193062772,-500.0,0.00054794,120]
[321445137,1712193062781,-500.0,0.00054794,120]
[321445138,1712193062798,-1006.03,0.00054794,120]
[321445139,1712193062808,-500.0,0.00054794,120]
[321445140,1712193062818,-539.18,0.00054794,120]
[321445141,1712193062827,-500.0,0.00054794,120]
[321445142,1712193062837,-500.0,0.00054794,120]
[321445143,1712193062848,-510.21331703,0.00054794,2]
[321445144,1712193062861,-500.0,0.00054794,120]
[321445145,1712193062872,-513.28,0.00054794,120]
[321445146,1712193062883,-204.04301499,0.00054794,120]
[321445147,1712193062895,-500.0,0.00054794,120]
[321445148,1712193062907,-836.08,0.00054794,120]
[321445149,1712193062917,-500.0,0.00054794,120]
[321445150,1712193062927,-500.0,0.00054794,120]
[321445151,1712193062938,-2185.74,0.00054794,120]
[321445152,1712193062948,-500.0,0.00054794,120]
[321445153,1712193062959,-500.0,0.00054794,120]
[321445154,1712193062969,-500.0,0.00054794,120]
[321445155,1712193062980,-1283.01,0.00054794,120]
[321445156,1712193062990,-666.67,0.00054794,120]
[321445157,1712193062999,-513.83440369,0.00054794,120]
[321445158,1712193063009,-500.0,0.00054794,120]
[321445159,1712193063018,-508.68341614,0.00054794,120]
[321445160,1712193063028,-886.76,0.00054794,120]
[321445161,1712193063037,-500.0,0.00054794,120]
[321445162,1712193063047,-1101.57,0.00054794,120]
[321445163,1712193063057,-502.24073019,0.00054794,120]
[321445164,1712193063067,-500.0,0.00054794,120]
[321445165,1712193063078,-500.0,0.00054794,120]
[321445166,1712193063087,-472.62094472,0.00054794,120]
[321445167,1712193063098,-500.0,0.00054794,120]
[321445168,1712193063108,-1211.72,0.00054794,120]
[321445169,1712193063119,-500.0,0.00054794,120]
[321445170,1712193063130,-500.0,0.00054794,120]
[321445171,1712193063141,-500.0,0.00054794,120]
[321445172,1712193063152,-501.31381906,0.00054794,120]
[321445173,1712193063162,-500.0,0.00054794,120]
[321445174,1712193063173,-500.0,0.00054794,120]
[321445175,1712193063182,-500.0,0.00054794,120]
[321445176,1712193063193,-500.0,0.00054794,120]
[321445177,1712193063203,-500.0,0.00054794,120]
[321445178,1712193063213,-500.0,0.00054794,120]
[321445179,1712193063223,-544.38445311,0.00054794,120]
[321445180,1712193063233,-1000.0,0.00054794,30]
[321445181,1712193063242,-504.7156112,0.00054794,120]
[321445182,1712193063252,-500.0,0.00054794,120]
[321445183,1712193063262,-500.0,0.00054794,120]
[321445184,1712193063272,-500.0,0.00054794,120]
[321445185,1712193063281,-500.0,0.00054794,120]
[321445186,1712193063291,-952.04,0.00054794,120]
[321445187,1712193063301,-500.0,0.00054794,120]
[321445188,1712193063311,-500.0,0.00054794,120]
[321445189,1712193063321,-500.0,0.00054794,120]
[321445190,1712193063330,-1261.86,0.00054794,120]
[321445191,1712193063341,-500.0,0.00054794,120]
[321445192,1712193063351,-584.36788201,0.00054794,120]
[321445193,1712193063362,-513.48225278,0.00054794,120]
[321445194,1712193063373,-505.4501326,0.00054794,120]
[321445195,1712193063384,-500.0,0.00054794,120]
[321445196,1712193063394,-485.13806164,0.00054794,120]
[321445197,1712193063405,-1429.76,0.00054794,120]
[321445198,1712193063415,-508.72387683,0.00054794,120]
[321445199,1712193063425,-504.30017467,0.00054794,120]
[321445200,1712193063434,-523.1846886,0.00054794,120]
[321445201,1712193063444,-181.1628868,0.00054794,120]
[321445202,1712193063454,-1277.23,0.00054794,120]
[321445203,1712193063464,-500.0,0.00054794,120]
[321445204,1712193063473,-500.0,0.00054794,120]
[321445205,1712193063483,-887.26,0.00054794,120]
[321445206,1712193063493,-659.49,0.00054794,120]
[321445207,1712193063503,-500.0,0.00054794,120]
[321445208,1712193063512,-1284.38,0.00054794,120]
[321445209,1712193063523,-935.91,0.00054794,120]
[321445210,1712193063533,-526.52666836,0.00054794,120]
[321445211,1712193063543,-504.49881216,0.00054794,120]
[321445212,1712193063782,-500.0,0.00054794,120]
[321445213,1712193063821,-500.0,0.00054794,120]
[321445214,1712193063830,-500.0,0.00054794,120]
[321445215,1712193063844,-2000.0,0.00054794,30]
[321445216,1712193063854,-514.68298953,0.00054794,120]
[321445217,1712193063863,-500.0,0.00054794,120]
[321445218,1712193063873,-1119.45,0.00054794,120]
[321445219,1712193063882,-516.70237293,0.00054794,120]
[321445220,1712193063892,-500.0,0.00054794,2]
[321445221,1712193063902,-1576.5,0.00054794,120]
[321445222,1712193063911,-500.0,0.00054794,120]
[321445223,1712193063921,-500.0,0.00054794,120]
[321445224,1712193063930,-230.41109752,0.00054794,120]
[321445225,1712193063940,-500.0,0.00054794,30]
[321445226,1712193063950,-2498.55,0.00054794,120]
[321445227,1712193063959,-500.0,0.00054794,120]
[321445228,1712193063969,-505.92489313,0.00054794,120]
[321445229,1712193063979,-500.0,0.00054794,120]
[321445230,1712193063989,-590.49,0.00054794,120]
[321445231,1712193063999,-518.076014,0.00054794,120]
[321445232,1712193064010,-500.0,0.00054794,120]
[321445233,1712193064019,-3323.22,0.00054794,120]
[321445234,1712193064029,-500.0,0.00054794,120]
[321445235,1712193064039,-1115.69,0.00054794,120]
[321445236,1712193064049,-500.0,0.00054794,120]
[321445237,1712193064058,-515.31810621,0.00054794,120]
[321445238,1712193064069,-500.0,0.00054794,120]
[321445239,1712193064079,-733.94,0.00054794,120]
[321445240,1712193064092,-500.0,0.00054794,120]
[321445241,1712193064101,-503.23163506,0.00054794,120]
[321445242,1712193064111,-509.30792695,0.00054794,120]
[321445243,1712193064120,-514.62328702,0.00054794,120]
[321445244,1712193064130,-906.84,0.00054794,120]